{"text_format":"3","workbook":"xlsx","n_sheets":5,"sheets":["Faktura","Kunder","Fakturaer – primære","Fakturadetaljer","Om dette register med fakturaer"],"not_rendered":{"defined_names":8},"read":"whole","date_system":"1900"}

{"sheet":"Faktura","index":0,"n_rows":39,"n_cols":7,"rows_kept":39,"merged":[[1,1,1,2],[1,3,1,4],[1,5,1,6],[2,1,2,2],[2,3,2,4],[2,5,2,6],[3,3,3,4],[4,3,4,4],[5,3,5,4],[37,1,37,4],[38,1,38,4]]}
[null,"Firmanavn"]
[null,"Gadeadresse",null,"Tlf: Telefonnummer",null,"Mail"]
[null,"By, postnummer",null,"Fax: Faxnummer",null,"Websted"]
[null,"Faktureres til:",{"$f":"IFERROR(VLOOKUP(VLOOKUP(områdeFaktura,FakturaerPrimære[],2,FALSE),KundeListe[],3,TRUE),\"\")","v":"Contoso, Ltd"},{"$f":"\"Telefonnummer: \"&IFERROR(VLOOKUP(VLOOKUP(områdeFaktura,FakturaerPrimære[],2,FALSE),KundeListe[],9,FALSE),\"\")","v":"Telefonnummer: 432-555-0189"},null,"Faktura #:","3-456-2"]
[null,"Adresse:",{"$f":"IFERROR(IF((VLOOKUP(VLOOKUP(områdeFaktura,FakturaerPrimære[],2,FALSE),KundeListe[],5,FALSE))=\"\",\"\",(VLOOKUP(VLOOKUP(områdeFaktura,FakturaerPrimære[],2,FALSE),KundeListe[],5,FALSE))),\"\")","v":"567 Walnut Lane"},{"$f":"\"Fax:                     \"&IFERROR(VLOOKUP(VLOOKUP(områdeFaktura,FakturaerPrimære[],2,FALSE),KundeListe[],11,FALSE),\"\")","v":"Fax:                     432-555-0123"},null,"Fakturadato:",{"$f":"IFERROR(IF(VLOOKUP(områdeFaktura,FakturaerPrimære[],3,FALSE)=\"\",\"\",VLOOKUP(områdeFaktura,FakturaerPrimære[],3,FALSE)),\"\")","v":"2019-08-09"}]
[null,null,{"$f":"IFERROR(VLOOKUP(VLOOKUP(områdeFaktura,FakturaerPrimære[],2,FALSE),KundeListe[],6,FALSE)&\", \"& VLOOKUP(VLOOKUP(G4,FakturaerPrimære[],2,FALSE),KundeListe[],7,FALSE)&\" \"&VLOOKUP(VLOOKUP(G4,FakturaerPrimære[],2,FALSE),KundeListe[],8,FALSE),\"\")","v":"Moline, MO 098765"},{"$f":"\"Mail: \"&IFERROR(VLOOKUP(VLOOKUP(områdeFaktura,FakturaerPrimære[],2,FALSE),KundeListe[],10,FALSE),\"\")","v":"Mail: nogen@eksempel.com"}]
[null,{"$f":"\"Faktura for: \"&IFERROR(VLOOKUP(områdeFaktura,FakturaerPrimære[],4),\"\")","v":"Faktura for: Projekt 2"}]
[null,"Varenr.","Beskrivelse","Antal","Enhedspris","Rabat","Pris"]
[null,{"$f":"IFERROR(INDEX(FakturaDetaljer[],SMALL(IF(FakturaDetaljer[Faktura '#]=områdeFaktura,ROW(FakturaDetaljer[])-ROW(FakturaDetaljer[#Headers])), ROW(1:1)), MATCH($B$8, FakturaDetaljer[#Headers], 0)),\"\")","v":"Z4567"},{"$f":"IFERROR(INDEX(FakturaDetaljer[],SMALL(IF(FakturaDetaljer[Faktura '#]=områdeFaktura,ROW(FakturaDetaljer[])-ROW(FakturaDetaljer[#Headers])), ROW(1:1)), MATCH($C$8, FakturaDetaljer[#Headers], 0)),\"\")","v":"Faktura 3-456-2 Data 1"},{"$f":"IFERROR(INDEX(FakturaDetaljer[],SMALL(IF(FakturaDetaljer[Faktura '#]=områdeFaktura,ROW(FakturaDetaljer[])-ROW(FakturaDetaljer[#Headers])), ROW(1:1)), MATCH($D$8, FakturaDetaljer[#Headers], 0)),\"\")","v":39},{"$f":"IFERROR(INDEX(FakturaDetaljer[],SMALL(IF(FakturaDetaljer[Faktura '#]=områdeFaktura,ROW(FakturaDetaljer[])-ROW(FakturaDetaljer[#Headers])), ROW(1:1)), MATCH($E$8, FakturaDetaljer[#Headers], 0)),\"\")","v":{"v":5,"d":"kr. 5.00"}},{"$f":"IFERROR(INDEX(FakturaDetaljer[],SMALL(IF(FakturaDetaljer[Faktura '#]=områdeFaktura,ROW(FakturaDetaljer[])-ROW(FakturaDetaljer[#Headers])), ROW(1:1)), MATCH($F$8, FakturaDetaljer[#Headers], 0)),\"\")","v":0},{"$f":"IFERROR((D9*E9)-F9,\"\")","v":{"v":195,"d":"kr. 195.00"}}]
[null,{"$f":"IFERROR(INDEX(FakturaDetaljer[],SMALL(IF(FakturaDetaljer[Faktura '#]=områdeFaktura,ROW(FakturaDetaljer[])-ROW(FakturaDetaljer[#Headers])), ROW(2:2)), MATCH($B$8, FakturaDetaljer[#Headers], 0)),\"\")","v":"Z4568"},{"$f":"IFERROR(INDEX(FakturaDetaljer[],SMALL(IF(FakturaDetaljer[Faktura '#]=områdeFaktura,ROW(FakturaDetaljer[])-ROW(FakturaDetaljer[#Headers])), ROW(2:2)), MATCH($C$8, FakturaDetaljer[#Headers], 0)),\"\")","v":"Faktura 3-456-2 Data 2"},{"$f":"IFERROR(INDEX(FakturaDetaljer[],SMALL(IF(FakturaDetaljer[Faktura '#]=områdeFaktura,ROW(FakturaDetaljer[])-ROW(FakturaDetaljer[#Headers])), ROW(2:2)), MATCH($D$8, FakturaDetaljer[#Headers], 0)),\"\")","v":40},{"$f":"IFERROR(INDEX(FakturaDetaljer[],SMALL(IF(FakturaDetaljer[Faktura '#]=områdeFaktura,ROW(FakturaDetaljer[])-ROW(FakturaDetaljer[#Headers])), ROW(2:2)), MATCH($E$8, FakturaDetaljer[#Headers], 0)),\"\")","v":{"v":4,"d":"kr. 4.00"}},{"$f":"IFERROR(INDEX(FakturaDetaljer[],SMALL(IF(FakturaDetaljer[Faktura '#]=områdeFaktura,ROW(FakturaDetaljer[])-ROW(FakturaDetaljer[#Headers])), ROW(2:2)), MATCH($F$8, FakturaDetaljer[#Headers], 0)),\"\")","v":{"v":5,"d":"kr. 5.00"}},{"v":155,"d":"kr. 155.00"}]
[null,{"$f":"IFERROR(INDEX(FakturaDetaljer[],SMALL(IF(FakturaDetaljer[Faktura '#]=områdeFaktura,ROW(FakturaDetaljer[])-ROW(FakturaDetaljer[#Headers])), ROW(3:3)), MATCH($B$8, FakturaDetaljer[#Headers], 0)),\"\")","v":"Z4569"},{"$f":"IFERROR(INDEX(FakturaDetaljer[],SMALL(IF(FakturaDetaljer[Faktura '#]=områdeFaktura,ROW(FakturaDetaljer[])-ROW(FakturaDetaljer[#Headers])), ROW(3:3)), MATCH($C$8, FakturaDetaljer[#Headers], 0)),\"\")","v":"Faktura 3-456-2 Data 3"},{"$f":"IFERROR(INDEX(FakturaDetaljer[],SMALL(IF(FakturaDetaljer[Faktura '#]=områdeFaktura,ROW(FakturaDetaljer[])-ROW(FakturaDetaljer[#Headers])), ROW(3:3)), MATCH($D$8, FakturaDetaljer[#Headers], 0)),\"\")","v":30},{"$f":"IFERROR(INDEX(FakturaDetaljer[],SMALL(IF(FakturaDetaljer[Faktura '#]=områdeFaktura,ROW(FakturaDetaljer[])-ROW(FakturaDetaljer[#Headers])), ROW(3:3)), MATCH($E$8, FakturaDetaljer[#Headers], 0)),\"\")","v":{"v":6,"d":"kr. 6.00"}},{"$f":"IFERROR(INDEX(FakturaDetaljer[],SMALL(IF(FakturaDetaljer[Faktura '#]=områdeFaktura,ROW(FakturaDetaljer[])-ROW(FakturaDetaljer[#Headers])), ROW(3:3)), MATCH($F$8, FakturaDetaljer[#Headers], 0)),\"\")","v":{"v":7,"d":"kr. 7.00"}},{"v":173,"d":"kr. 173.00"}]
[null,{"$f":"IFERROR(INDEX(FakturaDetaljer[],SMALL(IF(FakturaDetaljer[Faktura '#]=områdeFaktura,ROW(FakturaDetaljer[])-ROW(FakturaDetaljer[#Headers])), ROW(4:4)), MATCH($B$8, FakturaDetaljer[#Headers], 0)),\"\")","v":"Z4570"},{"$f":"IFERROR(INDEX(FakturaDetaljer[],SMALL(IF(FakturaDetaljer[Faktura '#]=områdeFaktura,ROW(FakturaDetaljer[])-ROW(FakturaDetaljer[#Headers])), ROW(4:4)), MATCH($C$8, FakturaDetaljer[#Headers], 0)),\"\")","v":"Faktura 3-456-2 Data 4"},{"$f":"IFERROR(INDEX(FakturaDetaljer[],SMALL(IF(FakturaDetaljer[Faktura '#]=områdeFaktura,ROW(FakturaDetaljer[])-ROW(FakturaDetaljer[#Headers])), ROW(4:4)), MATCH($D$8, FakturaDetaljer[#Headers], 0)),\"\")","v":40},{"$f":"IFERROR(INDEX(FakturaDetaljer[],SMALL(IF(FakturaDetaljer[Faktura '#]=områdeFaktura,ROW(FakturaDetaljer[])-ROW(FakturaDetaljer[#Headers])), ROW(4:4)), MATCH($E$8, FakturaDetaljer[#Headers], 0)),\"\")","v":{"v":7,"d":"kr. 7.00"}},{"$f":"IFERROR(INDEX(FakturaDetaljer[],SMALL(IF(FakturaDetaljer[Faktura '#]=områdeFaktura,ROW(FakturaDetaljer[])-ROW(FakturaDetaljer[#Headers])), ROW(4:4)), MATCH($F$8, FakturaDetaljer[#Headers], 0)),\"\")","v":0},{"v":280,"d":"kr. 280.00"}]
[null,{"$f":"IFERROR(INDEX(FakturaDetaljer[],SMALL(IF(FakturaDetaljer[Faktura '#]=områdeFaktura,ROW(FakturaDetaljer[])-ROW(FakturaDetaljer[#Headers])), ROW(5:5)), MATCH($B$8, FakturaDetaljer[#Headers], 0)),\"\")","v":"Z4571"},{"$f":"IFERROR(INDEX(FakturaDetaljer[],SMALL(IF(FakturaDetaljer[Faktura '#]=områdeFaktura,ROW(FakturaDetaljer[])-ROW(FakturaDetaljer[#Headers])), ROW(5:5)), MATCH($C$8, FakturaDetaljer[#Headers], 0)),\"\")","v":"Faktura 3-456-2 Data 5"},{"$f":"IFERROR(INDEX(FakturaDetaljer[],SMALL(IF(FakturaDetaljer[Faktura '#]=områdeFaktura,ROW(FakturaDetaljer[])-ROW(FakturaDetaljer[#Headers])), ROW(5:5)), MATCH($D$8, FakturaDetaljer[#Headers], 0)),\"\")","v":10},{"$f":"IFERROR(INDEX(FakturaDetaljer[],SMALL(IF(FakturaDetaljer[Faktura '#]=områdeFaktura,ROW(FakturaDetaljer[])-ROW(FakturaDetaljer[#Headers])), ROW(5:5)), MATCH($E$8, FakturaDetaljer[#Headers], 0)),\"\")","v":{"v":4,"d":"kr. 4.00"}},{"$f":"IFERROR(INDEX(FakturaDetaljer[],SMALL(IF(FakturaDetaljer[Faktura '#]=områdeFaktura,ROW(FakturaDetaljer[])-ROW(FakturaDetaljer[#Headers])), ROW(5:5)), MATCH($F$8, FakturaDetaljer[#Headers], 0)),\"\")","v":0},{"v":40,"d":"kr. 40.00"}]
[null,{"$f":"IFERROR(INDEX(FakturaDetaljer[],SMALL(IF(FakturaDetaljer[Faktura '#]=områdeFaktura,ROW(FakturaDetaljer[])-ROW(FakturaDetaljer[#Headers])), ROW(6:6)), MATCH($B$8, FakturaDetaljer[#Headers], 0)),\"\")","v":"Z4572"},{"$f":"IFERROR(INDEX(FakturaDetaljer[],SMALL(IF(FakturaDetaljer[Faktura '#]=områdeFaktura,ROW(FakturaDetaljer[])-ROW(FakturaDetaljer[#Headers])), ROW(6:6)), MATCH($C$8, FakturaDetaljer[#Headers], 0)),\"\")","v":"Faktura 3-456-2 Data 6"},{"$f":"IFERROR(INDEX(FakturaDetaljer[],SMALL(IF(FakturaDetaljer[Faktura '#]=områdeFaktura,ROW(FakturaDetaljer[])-ROW(FakturaDetaljer[#Headers])), ROW(6:6)), MATCH($D$8, FakturaDetaljer[#Headers], 0)),\"\")","v":5},{"$f":"IFERROR(INDEX(FakturaDetaljer[],SMALL(IF(FakturaDetaljer[Faktura '#]=områdeFaktura,ROW(FakturaDetaljer[])-ROW(FakturaDetaljer[#Headers])), ROW(6:6)), MATCH($E$8, FakturaDetaljer[#Headers], 0)),\"\")","v":{"v":8,"d":"kr. 8.00"}},{"$f":"IFERROR(INDEX(FakturaDetaljer[],SMALL(IF(FakturaDetaljer[Faktura '#]=områdeFaktura,ROW(FakturaDetaljer[])-ROW(FakturaDetaljer[#Headers])), ROW(6:6)), MATCH($F$8, FakturaDetaljer[#Headers], 0)),\"\")","v":0},{"v":40,"d":"kr. 40.00"}]
[null,{"$f":"IFERROR(INDEX(FakturaDetaljer[],SMALL(IF(FakturaDetaljer[Faktura '#]=områdeFaktura,ROW(FakturaDetaljer[])-ROW(FakturaDetaljer[#Headers])), ROW(7:7)), MATCH($B$8, FakturaDetaljer[#Headers], 0)),\"\")","v":"Z4573"},{"$f":"IFERROR(INDEX(FakturaDetaljer[],SMALL(IF(FakturaDetaljer[Faktura '#]=områdeFaktura,ROW(FakturaDetaljer[])-ROW(FakturaDetaljer[#Headers])), ROW(7:7)), MATCH($C$8, FakturaDetaljer[#Headers], 0)),\"\")","v":"Faktura 3-456-2 Data 7"},{"$f":"IFERROR(INDEX(FakturaDetaljer[],SMALL(IF(FakturaDetaljer[Faktura '#]=områdeFaktura,ROW(FakturaDetaljer[])-ROW(FakturaDetaljer[#Headers])), ROW(7:7)), MATCH($D$8, FakturaDetaljer[#Headers], 0)),\"\")","v":70},{"$f":"IFERROR(INDEX(FakturaDetaljer[],SMALL(IF(FakturaDetaljer[Faktura '#]=områdeFaktura,ROW(FakturaDetaljer[])-ROW(FakturaDetaljer[#Headers])), ROW(7:7)), MATCH($E$8, FakturaDetaljer[#Headers], 0)),\"\")","v":{"v":6,"d":"kr. 6.00"}},{"$f":"IFERROR(INDEX(FakturaDetaljer[],SMALL(IF(FakturaDetaljer[Faktura '#]=områdeFaktura,ROW(FakturaDetaljer[])-ROW(FakturaDetaljer[#Headers])), ROW(7:7)), MATCH($F$8, FakturaDetaljer[#Headers], 0)),\"\")","v":0},{"v":420,"d":"kr. 420.00"}]
[null,{"$f":"IFERROR(INDEX(FakturaDetaljer[],SMALL(IF(FakturaDetaljer[Faktura '#]=områdeFaktura,ROW(FakturaDetaljer[])-ROW(FakturaDetaljer[#Headers])), ROW(8:8)), MATCH($B$8, FakturaDetaljer[#Headers], 0)),\"\")","v":"Z4574"},{"$f":"IFERROR(INDEX(FakturaDetaljer[],SMALL(IF(FakturaDetaljer[Faktura '#]=områdeFaktura,ROW(FakturaDetaljer[])-ROW(FakturaDetaljer[#Headers])), ROW(8:8)), MATCH($C$8, FakturaDetaljer[#Headers], 0)),\"\")","v":"Faktura 3-456-2 Data 8"},{"$f":"IFERROR(INDEX(FakturaDetaljer[],SMALL(IF(FakturaDetaljer[Faktura '#]=områdeFaktura,ROW(FakturaDetaljer[])-ROW(FakturaDetaljer[#Headers])), ROW(8:8)), MATCH($D$8, FakturaDetaljer[#Headers], 0)),\"\")","v":25},{"$f":"IFERROR(INDEX(FakturaDetaljer[],SMALL(IF(FakturaDetaljer[Faktura '#]=områdeFaktura,ROW(FakturaDetaljer[])-ROW(FakturaDetaljer[#Headers])), ROW(8:8)), MATCH($E$8, FakturaDetaljer[#Headers], 0)),\"\")","v":{"v":4,"d":"kr. 4.00"}},{"$f":"IFERROR(INDEX(FakturaDetaljer[],SMALL(IF(FakturaDetaljer[Faktura '#]=områdeFaktura,ROW(FakturaDetaljer[])-ROW(FakturaDetaljer[#Headers])), ROW(8:8)), MATCH($F$8, FakturaDetaljer[#Headers], 0)),\"\")","v":0},{"v":100,"d":"kr. 100.00"}]
[null,{"$f":"IFERROR(INDEX(FakturaDetaljer[],SMALL(IF(FakturaDetaljer[Faktura '#]=områdeFaktura,ROW(FakturaDetaljer[])-ROW(FakturaDetaljer[#Headers])), ROW(9:9)), MATCH($B$8, FakturaDetaljer[#Headers], 0)),\"\")","v":"Z4575"},{"$f":"IFERROR(INDEX(FakturaDetaljer[],SMALL(IF(FakturaDetaljer[Faktura '#]=områdeFaktura,ROW(FakturaDetaljer[])-ROW(FakturaDetaljer[#Headers])), ROW(9:9)), MATCH($C$8, FakturaDetaljer[#Headers], 0)),\"\")","v":"Faktura 3-456-2 Data 9"},{"$f":"IFERROR(INDEX(FakturaDetaljer[],SMALL(IF(FakturaDetaljer[Faktura '#]=områdeFaktura,ROW(FakturaDetaljer[])-ROW(FakturaDetaljer[#Headers])), ROW(9:9)), MATCH($D$8, FakturaDetaljer[#Headers], 0)),\"\")","v":5},{"$f":"IFERROR(INDEX(FakturaDetaljer[],SMALL(IF(FakturaDetaljer[Faktura '#]=områdeFaktura,ROW(FakturaDetaljer[])-ROW(FakturaDetaljer[#Headers])), ROW(9:9)), MATCH($E$8, FakturaDetaljer[#Headers], 0)),\"\")","v":{"v":7,"d":"kr. 7.00"}},{"$f":"IFERROR(INDEX(FakturaDetaljer[],SMALL(IF(FakturaDetaljer[Faktura '#]=områdeFaktura,ROW(FakturaDetaljer[])-ROW(FakturaDetaljer[#Headers])), ROW(9:9)), MATCH($F$8, FakturaDetaljer[#Headers], 0)),\"\")","v":{"v":3,"d":"kr. 3.00"}},{"v":32,"d":"kr. 32.00"}]
[null,{"$f":"IFERROR(INDEX(FakturaDetaljer[],SMALL(IF(FakturaDetaljer[Faktura '#]=områdeFaktura,ROW(FakturaDetaljer[])-ROW(FakturaDetaljer[#Headers])), ROW(10:10)), MATCH($B$8, FakturaDetaljer[#Headers], 0)),\"\")","v":"Z4576"},{"$f":"IFERROR(INDEX(FakturaDetaljer[],SMALL(IF(FakturaDetaljer[Faktura '#]=områdeFaktura,ROW(FakturaDetaljer[])-ROW(FakturaDetaljer[#Headers])), ROW(10:10)), MATCH($C$8, FakturaDetaljer[#Headers], 0)),\"\")","v":"Faktura 3-456-2 Data 10"},{"$f":"IFERROR(INDEX(FakturaDetaljer[],SMALL(IF(FakturaDetaljer[Faktura '#]=områdeFaktura,ROW(FakturaDetaljer[])-ROW(FakturaDetaljer[#Headers])), ROW(10:10)), MATCH($D$8, FakturaDetaljer[#Headers], 0)),\"\")","v":80},{"$f":"IFERROR(INDEX(FakturaDetaljer[],SMALL(IF(FakturaDetaljer[Faktura '#]=områdeFaktura,ROW(FakturaDetaljer[])-ROW(FakturaDetaljer[#Headers])), ROW(10:10)), MATCH($E$8, FakturaDetaljer[#Headers], 0)),\"\")","v":{"v":1,"d":"kr. 1.00"}},{"$f":"IFERROR(INDEX(FakturaDetaljer[],SMALL(IF(FakturaDetaljer[Faktura '#]=områdeFaktura,ROW(FakturaDetaljer[])-ROW(FakturaDetaljer[#Headers])), ROW(10:10)), MATCH($F$8, FakturaDetaljer[#Headers], 0)),\"\")","v":0},{"v":80,"d":"kr. 80.00"}]
[null,{"$f":"IFERROR(INDEX(FakturaDetaljer[],SMALL(IF(FakturaDetaljer[Faktura '#]=områdeFaktura,ROW(FakturaDetaljer[])-ROW(FakturaDetaljer[#Headers])), ROW(11:11)), MATCH($B$8, FakturaDetaljer[#Headers], 0)),\"\")","v":"Z4577"},{"$f":"IFERROR(INDEX(FakturaDetaljer[],SMALL(IF(FakturaDetaljer[Faktura '#]=områdeFaktura,ROW(FakturaDetaljer[])-ROW(FakturaDetaljer[#Headers])), ROW(11:11)), MATCH($C$8, FakturaDetaljer[#Headers], 0)),\"\")","v":"Faktura 3-456-2 Data 11"},{"$f":"IFERROR(INDEX(FakturaDetaljer[],SMALL(IF(FakturaDetaljer[Faktura '#]=områdeFaktura,ROW(FakturaDetaljer[])-ROW(FakturaDetaljer[#Headers])), ROW(11:11)), MATCH($D$8, FakturaDetaljer[#Headers], 0)),\"\")","v":65},{"$f":"IFERROR(INDEX(FakturaDetaljer[],SMALL(IF(FakturaDetaljer[Faktura '#]=områdeFaktura,ROW(FakturaDetaljer[])-ROW(FakturaDetaljer[#Headers])), ROW(11:11)), MATCH($E$8, FakturaDetaljer[#Headers], 0)),\"\")","v":{"v":7,"d":"kr. 7.00"}},{"$f":"IFERROR(INDEX(FakturaDetaljer[],SMALL(IF(FakturaDetaljer[Faktura '#]=områdeFaktura,ROW(FakturaDetaljer[])-ROW(FakturaDetaljer[#Headers])), ROW(11:11)), MATCH($F$8, FakturaDetaljer[#Headers], 0)),\"\")","v":0},{"v":455,"d":"kr. 455.00"}]
[null,{"$f":"IFERROR(INDEX(FakturaDetaljer[],SMALL(IF(FakturaDetaljer[Faktura '#]=områdeFaktura,ROW(FakturaDetaljer[])-ROW(FakturaDetaljer[#Headers])), ROW(12:12)), MATCH($B$8, FakturaDetaljer[#Headers], 0)),\"\")","v":"Z4578"},{"$f":"IFERROR(INDEX(FakturaDetaljer[],SMALL(IF(FakturaDetaljer[Faktura '#]=områdeFaktura,ROW(FakturaDetaljer[])-ROW(FakturaDetaljer[#Headers])), ROW(12:12)), MATCH($C$8, FakturaDetaljer[#Headers], 0)),\"\")","v":"Faktura 3-456-2 Data 12"},{"$f":"IFERROR(INDEX(FakturaDetaljer[],SMALL(IF(FakturaDetaljer[Faktura '#]=områdeFaktura,ROW(FakturaDetaljer[])-ROW(FakturaDetaljer[#Headers])), ROW(12:12)), MATCH($D$8, FakturaDetaljer[#Headers], 0)),\"\")","v":44},{"$f":"IFERROR(INDEX(FakturaDetaljer[],SMALL(IF(FakturaDetaljer[Faktura '#]=områdeFaktura,ROW(FakturaDetaljer[])-ROW(FakturaDetaljer[#Headers])), ROW(12:12)), MATCH($E$8, FakturaDetaljer[#Headers], 0)),\"\")","v":{"v":1,"d":"kr. 1.00"}},{"$f":"IFERROR(INDEX(FakturaDetaljer[],SMALL(IF(FakturaDetaljer[Faktura '#]=områdeFaktura,ROW(FakturaDetaljer[])-ROW(FakturaDetaljer[#Headers])), ROW(12:12)), MATCH($F$8, FakturaDetaljer[#Headers], 0)),\"\")","v":0},{"v":44,"d":"kr. 44.00"}]
[null,{"$f":"IFERROR(INDEX(FakturaDetaljer[],SMALL(IF(FakturaDetaljer[Faktura '#]=områdeFaktura,ROW(FakturaDetaljer[])-ROW(FakturaDetaljer[#Headers])), ROW(13:13)), MATCH($B$8, FakturaDetaljer[#Headers], 0)),\"\")","v":""},{"$f":"IFERROR(INDEX(FakturaDetaljer[],SMALL(IF(FakturaDetaljer[Faktura '#]=områdeFaktura,ROW(FakturaDetaljer[])-ROW(FakturaDetaljer[#Headers])), ROW(13:13)), MATCH($C$8, FakturaDetaljer[#Headers], 0)),\"\")","v":""},{"$f":"IFERROR(INDEX(FakturaDetaljer[],SMALL(IF(FakturaDetaljer[Faktura '#]=områdeFaktura,ROW(FakturaDetaljer[])-ROW(FakturaDetaljer[#Headers])), ROW(13:13)), MATCH($D$8, FakturaDetaljer[#Headers], 0)),\"\")","v":""},{"$f":"IFERROR(INDEX(FakturaDetaljer[],SMALL(IF(FakturaDetaljer[Faktura '#]=områdeFaktura,ROW(FakturaDetaljer[])-ROW(FakturaDetaljer[#Headers])), ROW(13:13)), MATCH($E$8, FakturaDetaljer[#Headers], 0)),\"\")","v":""},{"$f":"IFERROR(INDEX(FakturaDetaljer[],SMALL(IF(FakturaDetaljer[Faktura '#]=områdeFaktura,ROW(FakturaDetaljer[])-ROW(FakturaDetaljer[#Headers])), ROW(13:13)), MATCH($F$8, FakturaDetaljer[#Headers], 0)),\"\")","v":""},""]
[null,{"$f":"IFERROR(INDEX(FakturaDetaljer[],SMALL(IF(FakturaDetaljer[Faktura '#]=områdeFaktura,ROW(FakturaDetaljer[])-ROW(FakturaDetaljer[#Headers])), ROW(14:14)), MATCH($B$8, FakturaDetaljer[#Headers], 0)),\"\")","v":""},{"$f":"IFERROR(INDEX(FakturaDetaljer[],SMALL(IF(FakturaDetaljer[Faktura '#]=områdeFaktura,ROW(FakturaDetaljer[])-ROW(FakturaDetaljer[#Headers])), ROW(14:14)), MATCH($C$8, FakturaDetaljer[#Headers], 0)),\"\")","v":""},{"$f":"IFERROR(INDEX(FakturaDetaljer[],SMALL(IF(FakturaDetaljer[Faktura '#]=områdeFaktura,ROW(FakturaDetaljer[])-ROW(FakturaDetaljer[#Headers])), ROW(14:14)), MATCH($D$8, FakturaDetaljer[#Headers], 0)),\"\")","v":""},{"$f":"IFERROR(INDEX(FakturaDetaljer[],SMALL(IF(FakturaDetaljer[Faktura '#]=områdeFaktura,ROW(FakturaDetaljer[])-ROW(FakturaDetaljer[#Headers])), ROW(14:14)), MATCH($E$8, FakturaDetaljer[#Headers], 0)),\"\")","v":""},{"$f":"IFERROR(INDEX(FakturaDetaljer[],SMALL(IF(FakturaDetaljer[Faktura '#]=områdeFaktura,ROW(FakturaDetaljer[])-ROW(FakturaDetaljer[#Headers])), ROW(14:14)), MATCH($F$8, FakturaDetaljer[#Headers], 0)),\"\")","v":""},""]
[null,{"$f":"IFERROR(INDEX(FakturaDetaljer[],SMALL(IF(FakturaDetaljer[Faktura '#]=områdeFaktura,ROW(FakturaDetaljer[])-ROW(FakturaDetaljer[#Headers])), ROW(15:15)), MATCH($B$8, FakturaDetaljer[#Headers], 0)),\"\")","v":""},{"$f":"IFERROR(INDEX(FakturaDetaljer[],SMALL(IF(FakturaDetaljer[Faktura '#]=områdeFaktura,ROW(FakturaDetaljer[])-ROW(FakturaDetaljer[#Headers])), ROW(15:15)), MATCH($C$8, FakturaDetaljer[#Headers], 0)),\"\")","v":""},{"$f":"IFERROR(INDEX(FakturaDetaljer[],SMALL(IF(FakturaDetaljer[Faktura '#]=områdeFaktura,ROW(FakturaDetaljer[])-ROW(FakturaDetaljer[#Headers])), ROW(15:15)), MATCH($D$8, FakturaDetaljer[#Headers], 0)),\"\")","v":""},{"$f":"IFERROR(INDEX(FakturaDetaljer[],SMALL(IF(FakturaDetaljer[Faktura '#]=områdeFaktura,ROW(FakturaDetaljer[])-ROW(FakturaDetaljer[#Headers])), ROW(15:15)), MATCH($E$8, FakturaDetaljer[#Headers], 0)),\"\")","v":""},{"$f":"IFERROR(INDEX(FakturaDetaljer[],SMALL(IF(FakturaDetaljer[Faktura '#]=områdeFaktura,ROW(FakturaDetaljer[])-ROW(FakturaDetaljer[#Headers])), ROW(15:15)), MATCH($F$8, FakturaDetaljer[#Headers], 0)),\"\")","v":""},""]
[null,{"$f":"IFERROR(INDEX(FakturaDetaljer[],SMALL(IF(FakturaDetaljer[Faktura '#]=områdeFaktura,ROW(FakturaDetaljer[])-ROW(FakturaDetaljer[#Headers])), ROW(16:16)), MATCH($B$8, FakturaDetaljer[#Headers], 0)),\"\")","v":""},{"$f":"IFERROR(INDEX(FakturaDetaljer[],SMALL(IF(FakturaDetaljer[Faktura '#]=områdeFaktura,ROW(FakturaDetaljer[])-ROW(FakturaDetaljer[#Headers])), ROW(16:16)), MATCH($C$8, FakturaDetaljer[#Headers], 0)),\"\")","v":""},{"$f":"IFERROR(INDEX(FakturaDetaljer[],SMALL(IF(FakturaDetaljer[Faktura '#]=områdeFaktura,ROW(FakturaDetaljer[])-ROW(FakturaDetaljer[#Headers])), ROW(16:16)), MATCH($D$8, FakturaDetaljer[#Headers], 0)),\"\")","v":""},{"$f":"IFERROR(INDEX(FakturaDetaljer[],SMALL(IF(FakturaDetaljer[Faktura '#]=områdeFaktura,ROW(FakturaDetaljer[])-ROW(FakturaDetaljer[#Headers])), ROW(16:16)), MATCH($E$8, FakturaDetaljer[#Headers], 0)),\"\")","v":""},{"$f":"IFERROR(INDEX(FakturaDetaljer[],SMALL(IF(FakturaDetaljer[Faktura '#]=områdeFaktura,ROW(FakturaDetaljer[])-ROW(FakturaDetaljer[#Headers])), ROW(16:16)), MATCH($F$8, FakturaDetaljer[#Headers], 0)),\"\")","v":""},""]
[null,{"$f":"IFERROR(INDEX(FakturaDetaljer[],SMALL(IF(FakturaDetaljer[Faktura '#]=områdeFaktura,ROW(FakturaDetaljer[])-ROW(FakturaDetaljer[#Headers])), ROW(17:17)), MATCH($B$8, FakturaDetaljer[#Headers], 0)),\"\")","v":""},{"$f":"IFERROR(INDEX(FakturaDetaljer[],SMALL(IF(FakturaDetaljer[Faktura '#]=områdeFaktura,ROW(FakturaDetaljer[])-ROW(FakturaDetaljer[#Headers])), ROW(17:17)), MATCH($C$8, FakturaDetaljer[#Headers], 0)),\"\")","v":""},{"$f":"IFERROR(INDEX(FakturaDetaljer[],SMALL(IF(FakturaDetaljer[Faktura '#]=områdeFaktura,ROW(FakturaDetaljer[])-ROW(FakturaDetaljer[#Headers])), ROW(17:17)), MATCH($D$8, FakturaDetaljer[#Headers], 0)),\"\")","v":""},{"$f":"IFERROR(INDEX(FakturaDetaljer[],SMALL(IF(FakturaDetaljer[Faktura '#]=områdeFaktura,ROW(FakturaDetaljer[])-ROW(FakturaDetaljer[#Headers])), ROW(17:17)), MATCH($E$8, FakturaDetaljer[#Headers], 0)),\"\")","v":""},{"$f":"IFERROR(INDEX(FakturaDetaljer[],SMALL(IF(FakturaDetaljer[Faktura '#]=områdeFaktura,ROW(FakturaDetaljer[])-ROW(FakturaDetaljer[#Headers])), ROW(17:17)), MATCH($F$8, FakturaDetaljer[#Headers], 0)),\"\")","v":""},""]
[null,{"$f":"IFERROR(INDEX(FakturaDetaljer[],SMALL(IF(FakturaDetaljer[Faktura '#]=områdeFaktura,ROW(FakturaDetaljer[])-ROW(FakturaDetaljer[#Headers])), ROW(18:18)), MATCH($B$8, FakturaDetaljer[#Headers], 0)),\"\")","v":""},{"$f":"IFERROR(INDEX(FakturaDetaljer[],SMALL(IF(FakturaDetaljer[Faktura '#]=områdeFaktura,ROW(FakturaDetaljer[])-ROW(FakturaDetaljer[#Headers])), ROW(18:18)), MATCH($C$8, FakturaDetaljer[#Headers], 0)),\"\")","v":""},{"$f":"IFERROR(INDEX(FakturaDetaljer[],SMALL(IF(FakturaDetaljer[Faktura '#]=områdeFaktura,ROW(FakturaDetaljer[])-ROW(FakturaDetaljer[#Headers])), ROW(18:18)), MATCH($D$8, FakturaDetaljer[#Headers], 0)),\"\")","v":""},{"$f":"IFERROR(INDEX(FakturaDetaljer[],SMALL(IF(FakturaDetaljer[Faktura '#]=områdeFaktura,ROW(FakturaDetaljer[])-ROW(FakturaDetaljer[#Headers])), ROW(18:18)), MATCH($E$8, FakturaDetaljer[#Headers], 0)),\"\")","v":""},{"$f":"IFERROR(INDEX(FakturaDetaljer[],SMALL(IF(FakturaDetaljer[Faktura '#]=områdeFaktura,ROW(FakturaDetaljer[])-ROW(FakturaDetaljer[#Headers])), ROW(18:18)), MATCH($F$8, FakturaDetaljer[#Headers], 0)),\"\")","v":""},""]
[null,{"$f":"IFERROR(INDEX(FakturaDetaljer[],SMALL(IF(FakturaDetaljer[Faktura '#]=områdeFaktura,ROW(FakturaDetaljer[])-ROW(FakturaDetaljer[#Headers])), ROW(19:19)), MATCH($B$8, FakturaDetaljer[#Headers], 0)),\"\")","v":""},{"$f":"IFERROR(INDEX(FakturaDetaljer[],SMALL(IF(FakturaDetaljer[Faktura '#]=områdeFaktura,ROW(FakturaDetaljer[])-ROW(FakturaDetaljer[#Headers])), ROW(19:19)), MATCH($C$8, FakturaDetaljer[#Headers], 0)),\"\")","v":""},{"$f":"IFERROR(INDEX(FakturaDetaljer[],SMALL(IF(FakturaDetaljer[Faktura '#]=områdeFaktura,ROW(FakturaDetaljer[])-ROW(FakturaDetaljer[#Headers])), ROW(19:19)), MATCH($D$8, FakturaDetaljer[#Headers], 0)),\"\")","v":""},{"$f":"IFERROR(INDEX(FakturaDetaljer[],SMALL(IF(FakturaDetaljer[Faktura '#]=områdeFaktura,ROW(FakturaDetaljer[])-ROW(FakturaDetaljer[#Headers])), ROW(19:19)), MATCH($E$8, FakturaDetaljer[#Headers], 0)),\"\")","v":""},{"$f":"IFERROR(INDEX(FakturaDetaljer[],SMALL(IF(FakturaDetaljer[Faktura '#]=områdeFaktura,ROW(FakturaDetaljer[])-ROW(FakturaDetaljer[#Headers])), ROW(19:19)), MATCH($F$8, FakturaDetaljer[#Headers], 0)),\"\")","v":""},""]
[null,{"$f":"IFERROR(INDEX(FakturaDetaljer[],SMALL(IF(FakturaDetaljer[Faktura '#]=områdeFaktura,ROW(FakturaDetaljer[])-ROW(FakturaDetaljer[#Headers])), ROW(20:20)), MATCH($B$8, FakturaDetaljer[#Headers], 0)),\"\")","v":""},{"$f":"IFERROR(INDEX(FakturaDetaljer[],SMALL(IF(FakturaDetaljer[Faktura '#]=områdeFaktura,ROW(FakturaDetaljer[])-ROW(FakturaDetaljer[#Headers])), ROW(20:20)), MATCH($C$8, FakturaDetaljer[#Headers], 0)),\"\")","v":""},{"$f":"IFERROR(INDEX(FakturaDetaljer[],SMALL(IF(FakturaDetaljer[Faktura '#]=områdeFaktura,ROW(FakturaDetaljer[])-ROW(FakturaDetaljer[#Headers])), ROW(20:20)), MATCH($D$8, FakturaDetaljer[#Headers], 0)),\"\")","v":""},{"$f":"IFERROR(INDEX(FakturaDetaljer[],SMALL(IF(FakturaDetaljer[Faktura '#]=områdeFaktura,ROW(FakturaDetaljer[])-ROW(FakturaDetaljer[#Headers])), ROW(20:20)), MATCH($E$8, FakturaDetaljer[#Headers], 0)),\"\")","v":""},{"$f":"IFERROR(INDEX(FakturaDetaljer[],SMALL(IF(FakturaDetaljer[Faktura '#]=områdeFaktura,ROW(FakturaDetaljer[])-ROW(FakturaDetaljer[#Headers])), ROW(20:20)), MATCH($F$8, FakturaDetaljer[#Headers], 0)),\"\")","v":""},""]
[null,{"$f":"IFERROR(INDEX(FakturaDetaljer[],SMALL(IF(FakturaDetaljer[Faktura '#]=områdeFaktura,ROW(FakturaDetaljer[])-ROW(FakturaDetaljer[#Headers])), ROW(21:21)), MATCH($B$8, FakturaDetaljer[#Headers], 0)),\"\")","v":""},{"$f":"IFERROR(INDEX(FakturaDetaljer[],SMALL(IF(FakturaDetaljer[Faktura '#]=områdeFaktura,ROW(FakturaDetaljer[])-ROW(FakturaDetaljer[#Headers])), ROW(21:21)), MATCH($C$8, FakturaDetaljer[#Headers], 0)),\"\")","v":""},{"$f":"IFERROR(INDEX(FakturaDetaljer[],SMALL(IF(FakturaDetaljer[Faktura '#]=områdeFaktura,ROW(FakturaDetaljer[])-ROW(FakturaDetaljer[#Headers])), ROW(21:21)), MATCH($D$8, FakturaDetaljer[#Headers], 0)),\"\")","v":""},{"$f":"IFERROR(INDEX(FakturaDetaljer[],SMALL(IF(FakturaDetaljer[Faktura '#]=områdeFaktura,ROW(FakturaDetaljer[])-ROW(FakturaDetaljer[#Headers])), ROW(21:21)), MATCH($E$8, FakturaDetaljer[#Headers], 0)),\"\")","v":""},{"$f":"IFERROR(INDEX(FakturaDetaljer[],SMALL(IF(FakturaDetaljer[Faktura '#]=områdeFaktura,ROW(FakturaDetaljer[])-ROW(FakturaDetaljer[#Headers])), ROW(21:21)), MATCH($F$8, FakturaDetaljer[#Headers], 0)),\"\")","v":""},""]
[null,{"$f":"IFERROR(INDEX(FakturaDetaljer[],SMALL(IF(FakturaDetaljer[Faktura '#]=områdeFaktura,ROW(FakturaDetaljer[])-ROW(FakturaDetaljer[#Headers])), ROW(22:22)), MATCH($B$8, FakturaDetaljer[#Headers], 0)),\"\")","v":""},{"$f":"IFERROR(INDEX(FakturaDetaljer[],SMALL(IF(FakturaDetaljer[Faktura '#]=områdeFaktura,ROW(FakturaDetaljer[])-ROW(FakturaDetaljer[#Headers])), ROW(22:22)), MATCH($C$8, FakturaDetaljer[#Headers], 0)),\"\")","v":""},{"$f":"IFERROR(INDEX(FakturaDetaljer[],SMALL(IF(FakturaDetaljer[Faktura '#]=områdeFaktura,ROW(FakturaDetaljer[])-ROW(FakturaDetaljer[#Headers])), ROW(22:22)), MATCH($D$8, FakturaDetaljer[#Headers], 0)),\"\")","v":""},{"$f":"IFERROR(INDEX(FakturaDetaljer[],SMALL(IF(FakturaDetaljer[Faktura '#]=områdeFaktura,ROW(FakturaDetaljer[])-ROW(FakturaDetaljer[#Headers])), ROW(22:22)), MATCH($E$8, FakturaDetaljer[#Headers], 0)),\"\")","v":""},{"$f":"IFERROR(INDEX(FakturaDetaljer[],SMALL(IF(FakturaDetaljer[Faktura '#]=områdeFaktura,ROW(FakturaDetaljer[])-ROW(FakturaDetaljer[#Headers])), ROW(22:22)), MATCH($F$8, FakturaDetaljer[#Headers], 0)),\"\")","v":""},""]
[null,{"$f":"IFERROR(INDEX(FakturaDetaljer[],SMALL(IF(FakturaDetaljer[Faktura '#]=områdeFaktura,ROW(FakturaDetaljer[])-ROW(FakturaDetaljer[#Headers])), ROW(23:23)), MATCH($B$8, FakturaDetaljer[#Headers], 0)),\"\")","v":""},{"$f":"IFERROR(INDEX(FakturaDetaljer[],SMALL(IF(FakturaDetaljer[Faktura '#]=områdeFaktura,ROW(FakturaDetaljer[])-ROW(FakturaDetaljer[#Headers])), ROW(23:23)), MATCH($C$8, FakturaDetaljer[#Headers], 0)),\"\")","v":""},{"$f":"IFERROR(INDEX(FakturaDetaljer[],SMALL(IF(FakturaDetaljer[Faktura '#]=områdeFaktura,ROW(FakturaDetaljer[])-ROW(FakturaDetaljer[#Headers])), ROW(23:23)), MATCH($D$8, FakturaDetaljer[#Headers], 0)),\"\")","v":""},{"$f":"IFERROR(INDEX(FakturaDetaljer[],SMALL(IF(FakturaDetaljer[Faktura '#]=områdeFaktura,ROW(FakturaDetaljer[])-ROW(FakturaDetaljer[#Headers])), ROW(23:23)), MATCH($E$8, FakturaDetaljer[#Headers], 0)),\"\")","v":""},{"$f":"IFERROR(INDEX(FakturaDetaljer[],SMALL(IF(FakturaDetaljer[Faktura '#]=områdeFaktura,ROW(FakturaDetaljer[])-ROW(FakturaDetaljer[#Headers])), ROW(23:23)), MATCH($F$8, FakturaDetaljer[#Headers], 0)),\"\")","v":""},""]
[null,{"$f":"IFERROR(INDEX(FakturaDetaljer[],SMALL(IF(FakturaDetaljer[Faktura '#]=områdeFaktura,ROW(FakturaDetaljer[])-ROW(FakturaDetaljer[#Headers])), ROW(24:24)), MATCH($B$8, FakturaDetaljer[#Headers], 0)),\"\")","v":""},{"$f":"IFERROR(INDEX(FakturaDetaljer[],SMALL(IF(FakturaDetaljer[Faktura '#]=områdeFaktura,ROW(FakturaDetaljer[])-ROW(FakturaDetaljer[#Headers])), ROW(24:24)), MATCH($C$8, FakturaDetaljer[#Headers], 0)),\"\")","v":""},{"$f":"IFERROR(INDEX(FakturaDetaljer[],SMALL(IF(FakturaDetaljer[Faktura '#]=områdeFaktura,ROW(FakturaDetaljer[])-ROW(FakturaDetaljer[#Headers])), ROW(24:24)), MATCH($D$8, FakturaDetaljer[#Headers], 0)),\"\")","v":""},{"$f":"IFERROR(INDEX(FakturaDetaljer[],SMALL(IF(FakturaDetaljer[Faktura '#]=områdeFaktura,ROW(FakturaDetaljer[])-ROW(FakturaDetaljer[#Headers])), ROW(24:24)), MATCH($E$8, FakturaDetaljer[#Headers], 0)),\"\")","v":""},{"$f":"IFERROR(INDEX(FakturaDetaljer[],SMALL(IF(FakturaDetaljer[Faktura '#]=områdeFaktura,ROW(FakturaDetaljer[])-ROW(FakturaDetaljer[#Headers])), ROW(24:24)), MATCH($F$8, FakturaDetaljer[#Headers], 0)),\"\")","v":""},""]
[null,{"$f":"IFERROR(INDEX(FakturaDetaljer[],SMALL(IF(FakturaDetaljer[Faktura '#]=områdeFaktura,ROW(FakturaDetaljer[])-ROW(FakturaDetaljer[#Headers])), ROW(25:25)), MATCH($B$8, FakturaDetaljer[#Headers], 0)),\"\")","v":""},{"$f":"IFERROR(INDEX(FakturaDetaljer[],SMALL(IF(FakturaDetaljer[Faktura '#]=områdeFaktura,ROW(FakturaDetaljer[])-ROW(FakturaDetaljer[#Headers])), ROW(25:25)), MATCH($C$8, FakturaDetaljer[#Headers], 0)),\"\")","v":""},{"$f":"IFERROR(INDEX(FakturaDetaljer[],SMALL(IF(FakturaDetaljer[Faktura '#]=områdeFaktura,ROW(FakturaDetaljer[])-ROW(FakturaDetaljer[#Headers])), ROW(25:25)), MATCH($D$8, FakturaDetaljer[#Headers], 0)),\"\")","v":""},{"$f":"IFERROR(INDEX(FakturaDetaljer[],SMALL(IF(FakturaDetaljer[Faktura '#]=områdeFaktura,ROW(FakturaDetaljer[])-ROW(FakturaDetaljer[#Headers])), ROW(25:25)), MATCH($E$8, FakturaDetaljer[#Headers], 0)),\"\")","v":""},{"$f":"IFERROR(INDEX(FakturaDetaljer[],SMALL(IF(FakturaDetaljer[Faktura '#]=områdeFaktura,ROW(FakturaDetaljer[])-ROW(FakturaDetaljer[#Headers])), ROW(25:25)), MATCH($F$8, FakturaDetaljer[#Headers], 0)),\"\")","v":""},""]
[{"$nulls":5},"Faktura-subtotal",{"$f":"SUM(ProjektFaktura[Pris])","v":{"v":2014,"d":"kr. 2,014.00"}}]
[{"$nulls":5},"Momssats",{"$f":"VLOOKUP(områdeFaktura,FakturaerPrimære[],5)","v":{"v":0.0875,"d":"8.75%"}}]
[{"$nulls":5},"Moms",{"$f":"G34*G35","v":{"v":176.225,"d":"kr. 176.23"}}]
[{"$nulls":5},"Andet",{"$f":"VLOOKUP(områdeFaktura,FakturaerPrimære[],6)","v":0}]
[null,{"$f":"\"Udsted alle checks til \"&Firmanavn&\".\"","v":"Udsted alle checks til Firmanavn."},{"$nulls":3},"Modtaget indskud",{"$f":"VLOOKUP(områdeFaktura,FakturaerPrimære[],7)","v":0}]
[null,"Samlet forfaldent i <#> dage. Forfaldne konti pålægges et servicegebyr på <#> % pr. måned.",{"$nulls":3},"TOTAL",{"$f":"(G34+G36+G37)-G38","v":{"v":2190.225,"d":"kr. 2,190.23"}}]

{"sheet":"Kunder","index":1,"n_rows":6,"n_cols":12,"rows_kept":6}
[]
[null,null,"Kunder"]
[null,"Opslag","Firmanr.","Firmanavn","Navn på kontakt","Adresse","By","Delstat","Postnummer","Telefonnummer","Mail","Fax"]
[null,{"$f":"C4& \" - \"&D4","v":"1 - Tailspin Toys "},1,"Tailspin Toys ","Robert Lyon","345 Cherry Street","Albany","SD","123456","432-555-0178","nogen@eksempel.com","432-555-0187"]
[null,"2 - Contoso, Ltd",2,"Contoso, Ltd","Sanjay Patel","567 Walnut Lane","Moline","MO","098765","432-555-0189","nogen@eksempel.com","432-555-0123"]
[null,"Totaler",{"$f":"\"Kunder i alt: \"&SUBTOTAL(103,KundeListe[Firmanr.])","v":"Kunder i alt: 2"}]

{"sheet":"Fakturaer – primære","index":2,"n_rows":6,"n_cols":11,"rows_kept":6}
[]
[null,"Fakturaer"]
[null,"Faktura #","Firma","Fakturadato","Projektbeskrivelse","Momssats","Andet","Indbetaling","Detalje i alt","Faktura i alt","Noter"]
[null,"3-456-1","1 - Tailspin Toys ",{"$f":"TODAY()","v":"2019-07-30"},"Projekt 1",{"v":0.0875,"d":"8.75%"},{"v":100,"d":"kr. 100.00"},{"v":100,"d":"kr. 100.00"},{"$f":"SUMIF(FakturaDetaljer[Faktura '#],\"=\"&FakturaerPrimære[[#This Row],[Faktura '#]],FakturaDetaljer[I alt])","v":{"v":5200,"d":"kr. 5,200.00"}},{"$f":"(FakturaerPrimære[[#This Row],[Detalje i alt]]*(1+FakturaerPrimære[[#This Row],[Momssats]]))+FakturaerPrimære[[#This Row],[Andet]]-FakturaerPrimære[[#This Row],[Indbetaling]]","v":{"v":5654.999999999999,"d":"kr. 5,655.00"}}]
[null,"3-456-2","2 - Contoso, Ltd",{"$f":"TODAY()+10","v":"2019-08-09"},"Projekt 2",{"v":0.0875,"d":"8.75%"},null,null,{"$f":"SUMIF(FakturaDetaljer[Faktura '#],\"=\"&FakturaerPrimære[[#This Row],[Faktura '#]],FakturaDetaljer[I alt])","v":{"v":2014,"d":"kr. 2,014.00"}},{"$f":"(FakturaerPrimære[[#This Row],[Detalje i alt]]*(1+FakturaerPrimære[[#This Row],[Momssats]]))+FakturaerPrimære[[#This Row],[Andet]]-FakturaerPrimære[[#This Row],[Indbetaling]]","v":{"v":2190.225,"d":"kr. 2,190.23"}}]
[null,"Totaler",{"$f":"\"Fakturaer i alt: \"&SUBTOTAL(103,FakturaerPrimære[Faktura '#])","v":"Fakturaer i alt: 2"},{"$nulls":3},{"$f":"SUBTOTAL(109,FakturaerPrimære[Andet])","v":{"v":100,"d":"kr. 100.00"}},{"$f":"SUBTOTAL(109,FakturaerPrimære[Indbetaling])","v":{"v":100,"d":"kr. 100.00"}},{"$f":"SUBTOTAL(109,FakturaerPrimære[Detalje i alt])","v":{"v":7214,"d":"kr. 7,214.00"}},{"$f":"SUBTOTAL(109,FakturaerPrimære[Faktura i alt])","v":{"v":7845.2249999999985,"d":"kr. 7,845.23"}}]

{"sheet":"Fakturadetaljer","index":3,"n_rows":40,"n_cols":8,"rows_kept":40}
[]
[null,"Fakturadetaljer"]
[null,"Beskrivelse","Faktura #","Varenr.","Antal","Enhedspris","Rabat","I alt"]
[null,"Faktura 3-456-1 Data 1","3-456-1",1,1,{"v":1,"d":"kr. 1.00"},{"v":1,"d":"kr. 1.00"},{"$f":"(FakturaDetaljer[[#This Row],[Antal]]*FakturaDetaljer[[#This Row],[Enhedspris]])-FakturaDetaljer[[#This Row],[Rabat]]","v":{"v":0,"d":"kr. 0.00"}}]
[null,"Faktura 3-456-1 Data 2","3-456-1",2,2,{"v":2,"d":"kr. 2.00"},{"v":2,"d":"kr. 2.00"},{"$f":"(FakturaDetaljer[[#This Row],[Antal]]*FakturaDetaljer[[#This Row],[Enhedspris]])-FakturaDetaljer[[#This Row],[Rabat]]","v":{"v":2,"d":"kr. 2.00"}}]
[null,"Faktura 3-456-1 Data 3","3-456-1",3,3,{"v":3,"d":"kr. 3.00"},{"v":3,"d":"kr. 3.00"},{"$f":"(FakturaDetaljer[[#This Row],[Antal]]*FakturaDetaljer[[#This Row],[Enhedspris]])-FakturaDetaljer[[#This Row],[Rabat]]","v":{"v":6,"d":"kr. 6.00"}}]
[null,"Faktura 3-456-1 Data 4","3-456-1",4,4,{"v":4,"d":"kr. 4.00"},{"v":4,"d":"kr. 4.00"},{"$f":"(FakturaDetaljer[[#This Row],[Antal]]*FakturaDetaljer[[#This Row],[Enhedspris]])-FakturaDetaljer[[#This Row],[Rabat]]","v":{"v":12,"d":"kr. 12.00"}}]
[null,"Faktura 3-456-1 Data 5","3-456-1",5,5,{"v":5,"d":"kr. 5.00"},{"v":5,"d":"kr. 5.00"},{"$f":"(FakturaDetaljer[[#This Row],[Antal]]*FakturaDetaljer[[#This Row],[Enhedspris]])-FakturaDetaljer[[#This Row],[Rabat]]","v":{"v":20,"d":"kr. 20.00"}}]
[null,"Faktura 3-456-1 Data 6","3-456-1",6,6,{"v":6,"d":"kr. 6.00"},{"v":6,"d":"kr. 6.00"},{"$f":"(FakturaDetaljer[[#This Row],[Antal]]*FakturaDetaljer[[#This Row],[Enhedspris]])-FakturaDetaljer[[#This Row],[Rabat]]","v":{"v":30,"d":"kr. 30.00"}}]
[null,"Faktura 3-456-1 Data 7","3-456-1",7,7,{"v":7,"d":"kr. 7.00"},{"v":7,"d":"kr. 7.00"},{"$f":"(FakturaDetaljer[[#This Row],[Antal]]*FakturaDetaljer[[#This Row],[Enhedspris]])-FakturaDetaljer[[#This Row],[Rabat]]","v":{"v":42,"d":"kr. 42.00"}}]
[null,"Faktura 3-456-1 Data 8","3-456-1",8,8,{"v":8,"d":"kr. 8.00"},{"v":8,"d":"kr. 8.00"},{"$f":"(FakturaDetaljer[[#This Row],[Antal]]*FakturaDetaljer[[#This Row],[Enhedspris]])-FakturaDetaljer[[#This Row],[Rabat]]","v":{"v":56,"d":"kr. 56.00"}}]
[null,"Faktura 3-456-1 Data 9","3-456-1",9,9,{"v":9,"d":"kr. 9.00"},{"v":9,"d":"kr. 9.00"},{"$f":"(FakturaDetaljer[[#This Row],[Antal]]*FakturaDetaljer[[#This Row],[Enhedspris]])-FakturaDetaljer[[#This Row],[Rabat]]","v":{"v":72,"d":"kr. 72.00"}}]
[null,"Faktura 3-456-1 Data 10","3-456-1",10,10,{"v":10,"d":"kr. 10.00"},{"v":10,"d":"kr. 10.00"},{"$f":"(FakturaDetaljer[[#This Row],[Antal]]*FakturaDetaljer[[#This Row],[Enhedspris]])-FakturaDetaljer[[#This Row],[Rabat]]","v":{"v":90,"d":"kr. 90.00"}}]
[null,"Faktura 3-456-1 Data 11","3-456-1",11,11,{"v":11,"d":"kr. 11.00"},{"v":11,"d":"kr. 11.00"},{"$f":"(FakturaDetaljer[[#This Row],[Antal]]*FakturaDetaljer[[#This Row],[Enhedspris]])-FakturaDetaljer[[#This Row],[Rabat]]","v":{"v":110,"d":"kr. 110.00"}}]
[null,"Faktura 3-456-1 Data 12","3-456-1",12,12,{"v":12,"d":"kr. 12.00"},{"v":12,"d":"kr. 12.00"},{"$f":"(FakturaDetaljer[[#This Row],[Antal]]*FakturaDetaljer[[#This Row],[Enhedspris]])-FakturaDetaljer[[#This Row],[Rabat]]","v":{"v":132,"d":"kr. 132.00"}}]
[null,"Faktura 3-456-1 Data 13","3-456-1",13,13,{"v":13,"d":"kr. 13.00"},{"v":13,"d":"kr. 13.00"},{"$f":"(FakturaDetaljer[[#This Row],[Antal]]*FakturaDetaljer[[#This Row],[Enhedspris]])-FakturaDetaljer[[#This Row],[Rabat]]","v":{"v":156,"d":"kr. 156.00"}}]
[null,"Faktura 3-456-1 Data 14","3-456-1",14,14,{"v":14,"d":"kr. 14.00"},{"v":14,"d":"kr. 14.00"},{"$f":"(FakturaDetaljer[[#This Row],[Antal]]*FakturaDetaljer[[#This Row],[Enhedspris]])-FakturaDetaljer[[#This Row],[Rabat]]","v":{"v":182,"d":"kr. 182.00"}}]
[null,"Faktura 3-456-1 Data 15","3-456-1",15,15,{"v":15,"d":"kr. 15.00"},{"v":15,"d":"kr. 15.00"},{"$f":"(FakturaDetaljer[[#This Row],[Antal]]*FakturaDetaljer[[#This Row],[Enhedspris]])-FakturaDetaljer[[#This Row],[Rabat]]","v":{"v":210,"d":"kr. 210.00"}}]
[null,"Faktura 3-456-1 Data 16","3-456-1",16,16,{"v":16,"d":"kr. 16.00"},{"v":16,"d":"kr. 16.00"},{"$f":"(FakturaDetaljer[[#This Row],[Antal]]*FakturaDetaljer[[#This Row],[Enhedspris]])-FakturaDetaljer[[#This Row],[Rabat]]","v":{"v":240,"d":"kr. 240.00"}}]
[null,"Faktura 3-456-1 Data 17","3-456-1",17,17,{"v":17,"d":"kr. 17.00"},{"v":17,"d":"kr. 17.00"},{"$f":"(FakturaDetaljer[[#This Row],[Antal]]*FakturaDetaljer[[#This Row],[Enhedspris]])-FakturaDetaljer[[#This Row],[Rabat]]","v":{"v":272,"d":"kr. 272.00"}}]
[null,"Faktura 3-456-1 Data 18","3-456-1",18,18,{"v":18,"d":"kr. 18.00"},{"v":18,"d":"kr. 18.00"},{"$f":"(FakturaDetaljer[[#This Row],[Antal]]*FakturaDetaljer[[#This Row],[Enhedspris]])-FakturaDetaljer[[#This Row],[Rabat]]","v":{"v":306,"d":"kr. 306.00"}}]
[null,"Faktura 3-456-1 Data 19","3-456-1",19,19,{"v":19,"d":"kr. 19.00"},{"v":19,"d":"kr. 19.00"},{"$f":"(FakturaDetaljer[[#This Row],[Antal]]*FakturaDetaljer[[#This Row],[Enhedspris]])-FakturaDetaljer[[#This Row],[Rabat]]","v":{"v":342,"d":"kr. 342.00"}}]
[null,"Faktura 3-456-1 Data 20","3-456-1",20,20,{"v":20,"d":"kr. 20.00"},{"v":20,"d":"kr. 20.00"},{"$f":"(FakturaDetaljer[[#This Row],[Antal]]*FakturaDetaljer[[#This Row],[Enhedspris]])-FakturaDetaljer[[#This Row],[Rabat]]","v":{"v":380,"d":"kr. 380.00"}}]
[null,"Faktura 3-456-1 Data 21","3-456-1",21,21,{"v":21,"d":"kr. 21.00"},{"v":21,"d":"kr. 21.00"},{"$f":"(FakturaDetaljer[[#This Row],[Antal]]*FakturaDetaljer[[#This Row],[Enhedspris]])-FakturaDetaljer[[#This Row],[Rabat]]","v":{"v":420,"d":"kr. 420.00"}}]
[null,"Faktura 3-456-1 Data 22","3-456-1",22,22,{"v":22,"d":"kr. 22.00"},{"v":22,"d":"kr. 22.00"},{"$f":"(FakturaDetaljer[[#This Row],[Antal]]*FakturaDetaljer[[#This Row],[Enhedspris]])-FakturaDetaljer[[#This Row],[Rabat]]","v":{"v":462,"d":"kr. 462.00"}}]
[null,"Faktura 3-456-1 Data 23","3-456-1",23,23,{"v":23,"d":"kr. 23.00"},{"v":23,"d":"kr. 23.00"},{"$f":"(FakturaDetaljer[[#This Row],[Antal]]*FakturaDetaljer[[#This Row],[Enhedspris]])-FakturaDetaljer[[#This Row],[Rabat]]","v":{"v":506,"d":"kr. 506.00"}}]
[null,"Faktura 3-456-1 Data 24","3-456-1",24,24,{"v":24,"d":"kr. 24.00"},{"v":24,"d":"kr. 24.00"},{"$f":"(FakturaDetaljer[[#This Row],[Antal]]*FakturaDetaljer[[#This Row],[Enhedspris]])-FakturaDetaljer[[#This Row],[Rabat]]","v":{"v":552,"d":"kr. 552.00"}}]
[null,"Faktura 3-456-1 Data 25","3-456-1",25,25,{"v":25,"d":"kr. 25.00"},{"v":25,"d":"kr. 25.00"},{"$f":"(FakturaDetaljer[[#This Row],[Antal]]*FakturaDetaljer[[#This Row],[Enhedspris]])-FakturaDetaljer[[#This Row],[Rabat]]","v":{"v":600,"d":"kr. 600.00"}}]
[null,"Faktura 3-456-2 Data 1","3-456-2","Z4567",39,{"v":5,"d":"kr. 5.00"},null,{"$f":"(FakturaDetaljer[[#This Row],[Antal]]*FakturaDetaljer[[#This Row],[Enhedspris]])-FakturaDetaljer[[#This Row],[Rabat]]","v":{"v":195,"d":"kr. 195.00"}}]
[null,"Faktura 3-456-2 Data 2","3-456-2","Z4568",40,{"v":4,"d":"kr. 4.00"},{"v":5,"d":"kr. 5.00"},{"$f":"(FakturaDetaljer[[#This Row],[Antal]]*FakturaDetaljer[[#This Row],[Enhedspris]])-FakturaDetaljer[[#This Row],[Rabat]]","v":{"v":155,"d":"kr. 155.00"}}]
[null,"Faktura 3-456-2 Data 3","3-456-2","Z4569",30,{"v":6,"d":"kr. 6.00"},{"v":7,"d":"kr. 7.00"},{"$f":"(FakturaDetaljer[[#This Row],[Antal]]*FakturaDetaljer[[#This Row],[Enhedspris]])-FakturaDetaljer[[#This Row],[Rabat]]","v":{"v":173,"d":"kr. 173.00"}}]
[null,"Faktura 3-456-2 Data 4","3-456-2","Z4570",40,{"v":7,"d":"kr. 7.00"},null,{"$f":"(FakturaDetaljer[[#This Row],[Antal]]*FakturaDetaljer[[#This Row],[Enhedspris]])-FakturaDetaljer[[#This Row],[Rabat]]","v":{"v":280,"d":"kr. 280.00"}}]
[null,"Faktura 3-456-2 Data 5","3-456-2","Z4571",10,{"v":4,"d":"kr. 4.00"},null,{"$f":"(FakturaDetaljer[[#This Row],[Antal]]*FakturaDetaljer[[#This Row],[Enhedspris]])-FakturaDetaljer[[#This Row],[Rabat]]","v":{"v":40,"d":"kr. 40.00"}}]
[null,"Faktura 3-456-2 Data 6","3-456-2","Z4572",5,{"v":8,"d":"kr. 8.00"},null,{"$f":"(FakturaDetaljer[[#This Row],[Antal]]*FakturaDetaljer[[#This Row],[Enhedspris]])-FakturaDetaljer[[#This Row],[Rabat]]","v":{"v":40,"d":"kr. 40.00"}}]
[null,"Faktura 3-456-2 Data 7","3-456-2","Z4573",70,{"v":6,"d":"kr. 6.00"},null,{"$f":"(FakturaDetaljer[[#This Row],[Antal]]*FakturaDetaljer[[#This Row],[Enhedspris]])-FakturaDetaljer[[#This Row],[Rabat]]","v":{"v":420,"d":"kr. 420.00"}}]
[null,"Faktura 3-456-2 Data 8","3-456-2","Z4574",25,{"v":4,"d":"kr. 4.00"},null,{"$f":"(FakturaDetaljer[[#This Row],[Antal]]*FakturaDetaljer[[#This Row],[Enhedspris]])-FakturaDetaljer[[#This Row],[Rabat]]","v":{"v":100,"d":"kr. 100.00"}}]
[null,"Faktura 3-456-2 Data 9","3-456-2","Z4575",5,{"v":7,"d":"kr. 7.00"},{"v":3,"d":"kr. 3.00"},{"$f":"(FakturaDetaljer[[#This Row],[Antal]]*FakturaDetaljer[[#This Row],[Enhedspris]])-FakturaDetaljer[[#This Row],[Rabat]]","v":{"v":32,"d":"kr. 32.00"}}]
[null,"Faktura 3-456-2 Data 10","3-456-2","Z4576",80,{"v":1,"d":"kr. 1.00"},null,{"$f":"(FakturaDetaljer[[#This Row],[Antal]]*FakturaDetaljer[[#This Row],[Enhedspris]])-FakturaDetaljer[[#This Row],[Rabat]]","v":{"v":80,"d":"kr. 80.00"}}]
[null,"Faktura 3-456-2 Data 11","3-456-2","Z4577",65,{"v":7,"d":"kr. 7.00"},null,{"$f":"(FakturaDetaljer[[#This Row],[Antal]]*FakturaDetaljer[[#This Row],[Enhedspris]])-FakturaDetaljer[[#This Row],[Rabat]]","v":{"v":455,"d":"kr. 455.00"}}]
[null,"Faktura 3-456-2 Data 12","3-456-2","Z4578",44,{"v":1,"d":"kr. 1.00"},null,{"$f":"(FakturaDetaljer[[#This Row],[Antal]]*FakturaDetaljer[[#This Row],[Enhedspris]])-FakturaDetaljer[[#This Row],[Rabat]]","v":{"v":44,"d":"kr. 44.00"}}]

{"sheet":"Om dette register med fakturaer","index":4,"n_rows":40,"n_cols":3,"rows_kept":40,"merged":[[3,1,3,7],[4,1,4,7],[5,1,5,7],[6,1,6,7],[7,2,7,7],[8,2,8,7],[9,2,9,7],[10,2,10,7],[11,2,11,7],[12,1,12,7],[13,2,13,3],[14,2,14,7],[15,1,15,7],[16,2,16,7],[17,2,17,7],[18,2,18,7],[19,2,19,7],[20,2,20,7],[21,2,21,7],[22,1,22,7],[23,1,23,7],[24,2,24,7],[25,2,25,7],[26,2,26,7],[27,2,27,7],[28,1,28,7],[29,1,29,7],[30,2,30,7],[31,2,31,7],[32,2,32,7],[33,2,33,7],[34,2,34,7],[36,2,36,7],[37,2,37,7],[38,2,38,7],[39,2,39,7]]}
[null,"Om dette register med fakturaer"]
[]
[]
[null,"Registeret over fakturaer er designet til at holde en historik over kunder, fakturaer og fakturaoplysninger, så du kan gemme flere fakturaer uden at skulle oprette flere filer. Du kan også bruge Registeret over fakturaer til at analysere dine tidligere fakturerede data. Du kan f. eks. få vist alle fakturaer for en kunde, et bestemt projekt eller få vist alle fakturaer for den sidste måned, det sidste år og meget mere."]
[null,"Før du går i gang, skal du se nærmere på de medfølgende eksempeldata. Markér cellen til højre for faktura nr. (celle L8) i fakturaarket, hvorefter der vises en rulleliste. Vælg rullelistepilen, og vælg derefter en eksempelfaktura. Bemærk, hvordan alle fakturaoplysninger automatisk ændres, så de afspejler den valgte faktura. Kig nu på arkene Kunder, Fakturaer – Hoved og Fakturaoplysninger. Hver af disse ark leverer oplysninger til fakturaen, og de ændringer, du foretager, opdateres automatisk. "]
[null,"Hvordan kommer jeg I gang?"]
[null,"Rediger fakturaarket, så det afspejler dine firmaoplysninger ved at følge disse trin:"]
[null,"1.","Naviger til arket Faktura og på fanen Gennemse i gruppen Beskyttelse skal du vælge Fjern arkbeskyttelse. "]
[null,null,"Bemærk! Fakturaarket er beskyttet for at undgå utilsigtede ændringer. Som tidligere nævnt, kommer størstedelen af dataene på dette ark fra alle andre ark i projektmappen. "]
[null,"2.","Tilpas fakturasidehovedet ved at skrive firmaets navn, adresse, by, postnummer, mailadresse, websted osv. I bunden af fakturaen (række 43) skal du redigere betalingsinstruktionerne. "]
[null,null,"Vigtige datoer! Du må ikke redigere fakturerings- eller fakturaoplysningerne. Alle disse celler har formler, der automatisk opdaterer fakturaen, som det er angivet i sektionen Om dette register med fakturaer.  "]
[null,"3.","(Valgfrit) Skift farverne i hele projektmappen: På fanen Sidelayout i gruppen Temaer skal du vælge Farver og derefter vælge et andet temafarvesæt fra farvegalleriet. "]
[null,"Tip! Opret en brugerdefineret temafarve, der passer til dit firmas branding! For at gøre dette skal du på fanen Sidelayout i gruppen Temaer vælge Farver og så vælge Tilpas farver. Hvis du vil have mere at vide om at oprette et brugerdefineret Farvesæt, skal du se følgende emne i Hjælp: "]
[null,null,"Tilpas et dokumenttema."]
[null,"4.","Når du har foretaget de ønskede ændringer, skal du vende tilbage til fakturaarket og gå til fanen Gennemse i gruppen Ændringer og vælge Beskyt arket og derefter vælge OK. Når fakturaarket er beskyttet, er det kun cellen med rullemenuen Fakturanr., du kan vælge."]
[null,"Hvordan opretter jeg en faktura?"]
[null,"1.","Angiv kundeoplysninger, f. eks. firmaets navn og adresse, på arket Kunder. Bemærk, at firmanr. er et vigtigt element, da det indeholder et entydigt id for hvert firma, der bruges i hele registeret over fakturaer. Bemærk også, at du kun skal tilføje et firma én gang. For efterfølgende fakturaer til samme firma kan du springe dette trin over. "]
[null,null,"Bemærk! Hvis du tildeler det samme nummer til mere end ét firma eller angiver det samme firmanavn mere end én gang, bliver posterne røde for at give dig besked om duplikeringen. "]
[null,"2.","På siden Fakturaer – Hoved skal du angive de primære oplysninger til din faktura, f.eks. fakturanr., fakturadato og projektbeskrivelse. Ligesom med firmanr. er fakturanr. et vigtigt element, da det indeholder et entydigt id for hver faktura, der bruges i hele Register for fakturaer. En anden vigtig post er Firma. Når du vælger et firma fra rullelisten, knyttes din faktura til firmaet. Når du vælger et fakturanr. i fakturaarket, udfyldes firmaets oplysninger, f.eks. firmaets navn og adresse, automatisk på fakturaen."]
[null,null,"Bemærk! Hvis du tildeler det samme nummer til mere end én faktura bliver posterne røde for at give dig besked om duplikeringen. "]
[null,"3.","Angiv oplysningerne for din faktura, f.eks. en varebeskrivelse, et varenr., en mængde og en enhedspris på arket Fakturaoplysninger. Rullemenuen Fakturanr. indeholder en liste over de fakturaer, du har angivet på siden Fakturaer – Hoved for at lette dataindtastning. På samme måde som med Firmanr. i det foregående trin, tilknytter fakturanr. det detaljeelement med en bestemt faktura. Når du vælger et fakturanr. på fakturaarket fra rullelisten Fakturanr., vises de relaterede fakturadetaljeelementer for den faktura."]
[null,null,"Bemærk! Du er begrænset til 25 detaljeelementer pr. faktura. Hvis der tilføjes mere end 25 elementer, bliver alle de tilsvarende poster røde for at give dig besked om denne begrænsning. Hvis du har mere end 25 fakturaelementer, skal du oprette endnu en faktura. "]
[null,"Hvordan tilføjer jeg flere oplysninger om kunder, fakturaer og fakturadetaljer?"]
[null,"Dataene for kunder, fakturaer og fakturadetaljer er gemt i Excel-tabeller. Når du føjer en ny række til en tabel, bliver den nye rækker formateret automatisk, og eventuelle beregninger bliver kopieret. Hvis du vil tilføje nye tabelrækker, skal du gøre et af følgende:"]
[null,"● ","Hvis tabellen ikke har en række med totaler, skal du starte med at skrive under tabellen. Så udvides den automatisk, når du trykker på Enter eller Tab."]
[null,"● ","Placer cellemarkøren i den sidste celle over rækken I alt, f.eks. i tabellen Fakturaer i cellen Noter for den sidste faktura og tryk på Tab."]
[null,"● ","Få fanen Hjem i gruppen Celler skal du vælge Indsæt, og så vælge Tabelrækker ovenfor eller Tabelrække nedenfor. "]
[null,"● ","Placer musen på størrelseshåndtaget i nederste højre hjørne af tabellen, og træk ned for at øge antallet af tilgængelige rækker."]
[null,"Hvordan analyserer jeg mine fakturadetaljer?"]
[null,"Som nævnt i sektionen Om register over fakturaer, kan du, når du har angivet flere fakturaer, få vist en liste over alle fakturaer for en bestemt kunde, et bestemt projekt, et angivet datointerval og meget mere. Denne type analyse opnås ved hjælp af et filter, som gør det muligt hurtigt at indsnævre en liste med data. For at filtrere baseret på tabellerne Kunder, Fakturaer eller Fakturadetaljer skal du vælge rullepilen ved siden af et hvert tabelfeltnavn. En filterrude kan vise dig en række forskellige filtreringsindstillinger. Her er et par filtreringseksempler, som kan hjælpe dig med at komme i gang:"]
[null,"● ","Sådan får du vist det samlede beløb, du har faktureret en bestemt kunde: På arket Fakturaer – Hoved til højre for feltet firmanr. skal du vælge rullepilen. I ruden Filter skal du klikke på Markér alle for at fjerne markeringen af alle firmaer, vælge det ønskede firma og derefter vælge OK. "]
[null,null,"Tip! I ruden Filtrer skal du skrive kundenavnet i tekstfeltet Søg for hurtigt at søge i den tilgængelige liste."]
[null,"● ","Sådan får du vist alle fakturaer for en bestemt kunde og bestemte projekterer: Start med at filtrere efter ønskede kunder ved hjælp af de trin, der er beskrevet i det forrige eksempel. Derefter skal du vælge rullepilen til højre for projektnr. I ruden Filter skal du vælge det eller de ønskede projekter og derefter vælge OK. "]
[null,"● ","Sådan får du vist alle fakturaer for den forrige måned: I arket Fakturaer – Hoved til højre for feltet faktureringsdato skal du vælge rullepilen, pege på datofilter og derefter vælge sidste måned."]
[null,"● ","For at få vist alle kunder med samme områdenummer: På arket Kunder til højre for feltet Telefon skal du vælge rullepilen. I ruden Filter skal du klikke på tekstfeltet Søg, skrive områdenummeret og derefter vælge OK. "]
[null,"Tip til filtrering"]
[null,"● ","Hvis en tabel har en totalrække, f.eks. Kunder og Fakturaer, viser de beregnede totaler kun den filtrerede liste."]
[null,"● ","Brug flere filtre i et enkelt felt eller på tværs af flere felter for at finjustere dine resultater."]
[null,"● ","For at rydde et enkelt filter, skal du vælge rullepilen for en tidligere filtreret kolonne og derefter vælge Fjern filter fra <feltnavn>."]
[null,"● ","Hvis du vil rydde flere filtre på samme tid, skal du placere cellemarkøren i tabellen, under fanen Hjem i gruppen Redigering, vælge Sortér og filtrér og derefter vælge Ryd."]